Cogmind - Beta 13 @@@ ROGUE MODE // 2024.04.21 @ 12:36:55 Player: TheLargestBoi Result: Self-destructed Performance ------------- Evolutions (3) 1500 Regions Visited (8) 1600 Robots Destroyed (61) 305 Value Destroyed (1410) 1410 Prototype IDs (28) 560 Alien Tech Used (0) 0 Bonus (371) 371 TOTAL SCORE: 5746 Bonus ------- High Alert Combat Kills 46 Follower Combat Kills 25 Aligned with FarCom 300 Cogmind --------- Core Integrity 700/700 Matter 213/300 Energy 160/160 System Corruption 0% Temperature Cool (0) Movement Flying (50) Location -7/Factory Parts ------- > --- POWER (2) -------- Light Nuclear Core > --- PROPULSION (4) --- Flying Fortress v7 > --- UTILITY (5) ------ Large Storage Unit Advanced Visual Processing Unit Reaction Control System Propulsion Shielding Hardened Medium Armor Plating > --- WEAPON (2) ------- Heavy Assault Rifle Great Maul > --- INVENTORY (15) --- Nuclear Core Faulty Cooled VTOL Module Medium Matter Pod (100) Advanced Weight Redist. System Improved Signal Interpreter Actuator Array Medium Armor Plating Hardened Medium Armor Plating Shield Generator Shock Rifle Heavy Particle Cannon Improved Assault Rifle Missile Launcher Missile Launcher Flail Peak State ------------ > --- POWER ------------ Light Nuclear Core > --- PROPULSION ------- Flying Fortress v7 > --- UTILITY ---------- Large Storage Unit Advanced Visual Processing Unit Reaction Control System Propulsion Shielding Hardened Medium Armor Plating > --- WEAPON ----------- Heavy Assault Rifle Great Maul > --- INVENTORY -------- Nuclear Core Cooled VTOL Module Medium Matter Pod Advanced Weight Redist. System Improved Signal Interpreter Actuator Array Medium Armor Plating Hardened Medium Armor Plating Shield Generator Shock Rifle Heavy Particle Cannon Autogun Improved Assault Rifle Missile Launcher Missile Launcher [Rating: 55] Favorites ----------- Power Light Nuclear Core Engine Ion Engine Power Core Light Nuclear Core Propulsion Aluminum Leg Treads Light Treads Leg Aluminum Leg Flight Unit Flying Fortress v7 Utility Hardened Medium Armor Plating Device Reaction Control System Storage Large Storage Unit Processor Advanced Visual Processing Unit Protection Hardened Medium Armor Plating Weapon Improved Assault Rifle Energy Gun Medium Laser Energy Cannon Advanced Beam Cannon Ballistic Gun Improved Assault Rifle Launcher Rocket Launcher Impact Weapon Maul Build | -11 -10 -10 -9 -9 -9 -8 -8 -7 ------- Run | Yrd Mat Min Mat Min Exi Min Mat Fac Slots Evolved 6 | . . . 2 . . . 2 2 Power 1 | . . . . . . . . 1 Propulsion 2 | . . . 2 . . . . . Utility 3 | . . . . . . . 2 1 Weapon . | . . . . . . . . . Parts Attached 53 | 6 11 6 19 . 2 1 6 2 Power 5 | 1 1 1 2 . . . . . Engine 4 | 1 1 1 1 . . . . . Core 1 | . . . 1 . . . . . Reactor . | . . . . . . . . . Propulsion 12 | 2 1 1 7 . 1 . . . Treads 2 | . . . 2 . . . . . Leg 9 | 2 1 1 5 . . . . . Wheel . | . . . . . . . . . Hover . | . . . . . . . . . Flight 1 | . . . . . 1 . . . Utility 19 | 2 4 2 5 . 1 1 3 1 Device 6 | 1 1 2 1 . . . 1 . Storage 3 | 1 1 . 1 . . . . . Processor 1 | . . . . . . . . 1 Hackware . | . . . . . . . . . Protection 9 | . 2 . 3 . 1 1 2 . Artifact . | . . . . . . . . . Weapon 17 | 1 5 2 5 . . . 3 1 Energy Gun 3 | 1 2 . . . . . . . Energy Cannon 1 | . . . . . . . 1 . Ballistic Gun 6 | . 1 . 4 . . . 1 . Ballistic Cannon . | . . . . . . . . . Launcher 2 | . . 1 1 . . . . . Special Weapon . | . . . . . . . . . Impact Weapon 5 | . 2 1 . . . . 1 1 Slashing Weapon . | . . . . . . . . . Piercing Weapon . | . . . . . . . . . Special Melee Weapon . | . . . . . . . . . Unidentified Prototypes 3 | . . 1 1 . . . 1 . Corrupted Parts 1 | . . 1 . . . . . . System Corruption 11 | . . 11 . . . . . . Parts Lost 5 | . . 4 1 . . . . . Power 1 | . . 1 . . . . . . Propulsion 1 | . . 1 . . . . . . Utility 3 | . . 2 1 . . . . . Weapon . | . . . . . . . . . Highest Loss Streak 3 | . . 3 1 . . . . . To Critical Strikes . | . . . . . . . . . Average Slot Usage (%) 85 | . 99 96 97 100 85 66 72 69 Engine 4 | . 14 13 6 . . . . . Core 5 | . . . 4 11 11 11 9 7 Treads 1 | . . . 4 . . . . . Leg 18 | . 28 26 36 44 28 . . . Flight 3 | . . . . . 4 11 9 7 Device 2 | . 7 4 1 . . . 1 7 Storage 10 | . 14 14 11 11 11 11 9 7 Protection 14 | . 6 8 9 11 8 11 25 15 Ballistic Gun 11 | . 1 . 14 22 22 22 14 7 Impact Weapon 8 | . 22 27 6 . . . 3 7 Naked Turns . | . . . . . . . . . Heaviest Build 47 | 13 24 24 39 39 39 39 47 42 Greatest Support 50 | 20 20 20 49 49 50 50 50 50 Greatest Overweight (x) 10 | . 1 2 2 . 10 . . . Average Overweight (x) . | . . . . . . . . . Largest Inventory Capacity 15 | 8 10 10 15 15 15 15 15 15 Average Capacity 12 | 7 8 10 11 15 15 15 15 15 Most Carried 15 | 5 8 10 15 15 15 15 15 15 Average Carried 11 | 2 7 8 10 15 15 14 14 14 Final Capacity 15 | 8 10 10 15 15 15 15 15 15 Final Carried 15 | 5 8 6 15 15 15 15 15 15 Class Distribution -------------------- 97% | Mutant Dominant Class ---------------- Mutant | -10/Materials Mutant | -10/Mines Mutant | -9/Materials Mutant | -9/Mines Mutant | -9/Exiles Mutant | -8/Mines Mutant | -8/Materials Mutant | -7/Factory Resources | -11 -10 -10 -9 -9 -9 -8 -8 -7 ----------- Run | Yrd Mat Min Mat Min Exi Min Mat Fac Matter Collected 1243 | 194 166 88 607 . . 24 131 33 Remotely . | . . . . . . . . . Salvage Created 1719 | 21 427 37 1070 . . . 131 33 Parts 103 | 2 11 4 72 . . . 14 . Haulers Intercepted 3 | . 1 . 2 . . . . . Recyclers Shooed 1 | . . . . . . . . 1 Parts Field Recycled . | . . . . . . . . . Retrieved Matter . | . . . . . . . . . Parts Self-Destructed . | . . . . . . . . . Prevented . | . . . . . . . . . Kills | -11 -10 -10 -9 -9 -9 -8 -8 -7 ------- Run | Yrd Mat Min Mat Min Exi Min Mat Fac Combat Hostiles Destroyed 42 | . 6 4 29 . . . 3 . Melee 5 | . 3 . 2 . . . . . Guns 20 | . . . 17 . . . 3 . AOE 10 | . . 3 7 . . . . . Classes Destroyed 11 | 1 4 1 5 . . . . . Worker 1 | . . . 1 . . . . . Builder 1 | . . . 1 . . . . . Tunneler 1 | 1 . . . . . . . . Hauler 3 | . 1 . 2 . . . . . Recycler 4 | . 3 . 1 . . . . . Operator 2 | . . . 1 . . . 1 . Watcher 7 | . 1 . 3 . . . 2 1 Swarmer 16 | . . 3 10 . . . 3 . Grunt 18 | . 6 1 11 . . . . . Duelist 1 | . . . 1 . . . . . Sentry 7 | . . . 7 . . . . . Best Kill Streak 5 | 1 2 3 5 . . . 3 1 Combat Bots Only 5 | . 2 3 5 . . . 3 . Max Kills in Single Turn 4 | 1 1 3 4 . . . 1 1 Gunslinging 1 | . . . 1 . . . . . Exploded 4 | . . 3 4 . . . . . Melee 1 | . 1 . 1 . . . . . Uniques/NPCs Destroyed . | . . . . . . . . . Combat | -11 -10 -10 -9 -9 -9 -8 -8 -7 -------- Run | Yrd Mat Min Mat Min Exi Min Mat Fac Hostile Shots Fired 165 | . 25 28 107 . . . 5 . Missed 46 | . 7 3 32 . . . 4 . Damage Taken 1661 | . 228 376 1047 . . . 10 . Core 230 | . 38 95 97 . . . . . Absorbed by Shields . | . . . . . . . . . Regen/Repaired (Parts) 62 | . . . 62 . . . . . Core Remaining (%) 80 | 100 . 46 . . . 75 100 . Volleys Fired 80 | 1 . 3 51 . . . 19 6 Largest 2 | 1 . 1 2 . . . 2 1 Hottest 56 | 50 . 33 56 . . . 46 23 Shots Fired 145 | 1 . 3 99 . . . 36 6 Gun 138 | 1 . . 95 . . . 36 6 Cannon . | . . . . . . . . . Launcher 7 | . . 3 4 . . . . . Special . | . . . . . . . . . Kinetic 137 | . . . 95 . . . 36 6 Thermal 1 | 1 . . . . . . . . Explosive 7 | . . 3 4 . . . . . Electromagnetic . | . . . . . . . . . Robot Hit Streak 14 | 1 . 1 14 . . . 3 2 Robot Miss Streak 3 | . . 1 3 . . . 3 3 Penetration Max . | . . . . . . . . . Secondary Targets 1 | . . . 1 . . . . . Max Gunslinging Chain 1 | . . . 1 . . . . . Shots Hit Robots 146 | 1 26 4 90 . . . 20 5 Core Hits 63 | 1 6 3 42 . . . 11 . Critical Kills 2 | . 1 . 1 . . . . . Critical Parts Destroyed 8 | . 3 1 3 . . . . 1 Critical Strikes 10 | . 4 1 4 . . . . 1 Smash 10 | . 4 1 4 . . . . 1 Melee Attacks 79 | . 34 4 26 . . . 11 4 Impact 79 | . 34 4 26 . . . 11 4 Slashing . | . . . . . . . . . Piercing . | . . . . . . . . . Sneak Attacks 7 | . 4 . 2 . . . . 1 Combat Hostiles . | . . . . . . . . . Follow-up Attacks 8 | . 5 . 3 . . . . . Damage Inflicted 4284 | 13 1104 266 2428 . . . 325 148 Guns 1434 | 13 . . 1054 . . . 325 42 Cannons . | . . . . . . . . . Explosions 760 | . . 168 592 . . . . . Melee 2082 | . 1104 98 774 . . . . 106 Ramming 8 | . . . 8 . . . . . Kinetic 1421 | . . . 1054 . . . 325 42 Thermal 13 | 13 . . . . . . . . Explosive 760 | . . 168 592 . . . . . Electromagnetic . | . . . . . . . . . Impact 2082 | . 1104 98 774 . . . . 106 Slashing . | . . . . . . . . . Piercing . | . . . . . . . . . Highest Corruption 11 | . . 11 . . . . 5 . Average Corruption 5 | . . 11 . . . . 5 . Corruption Purged . | . . . . . . . . . Corruption Blocked . | . . . . . . . . . Effects 11 | . . 2 . . . . 9 . Message Errors 2 | . . . . . . . 2 . Matter Fused 4 | . . . . . . . 4 . Heat Flow Errors 3 | . . 1 . . . . 2 . Data Loss (minor) 1 | . . 1 . . . . . . Data Loss (major) 1 | . . . . . . . 1 . Overload Shots . | . . . . . . . . . Overflow Damage 623 | . 303 25 219 . . . . 76 Projectiles . | . . . . . . . . . Explosions . | . . . . . . . . . Melee 623 | . 303 25 219 . . . . 76 Knockbacks 6 | . 4 . 1 . . . . 1 Impact 6 | . 4 . 1 . . . . 1 Kinetic . | . . . . . . . . . Secondary . | . . . . . . . . . Self-Inflicted Damage 138 | . . 54 84 . . . . . Shots 5 | . . 2 3 . . . . . Rammed . | . . . . . . . . . Targets Rammed 3 | . . . 3 . . . . . Kicked 3 | . . . 3 . . . . . Crushed . | . . . . . . . . . Highest Temperature 212 | 10 11 212 138 . . . 204 7 Average Temperature 46 | 7 11 95 41 . . . 46 5 Received Heat Transfer 756 | . 150 189 417 . . . . . Siege Activations . | . . . . . . . . . Robots Corrupted . | . . . . . . . . . Combat Hostiles . | . . . . . . . . . Parts Fried 11 | . 3 . 7 . . . . 1 Impact Corruptions 23 | . 11 1 8 . . . . 3 Robots Melted . | . . . . . . . . . Combat Hostiles . | . . . . . . . . . Parts Melted 1 | . . . 1 . . . . . Heat Transferred 37 | 37 . . . . . . . . Parts Sabotaged . | . . . . . . . . . Parts Stolen . | . . . . . . . . . Parts Stripped . | . . . . . . . . . Power Chain Reactions . | . . . . . . . . . Alert | -11 -10 -10 -9 -9 -9 -8 -8 -7 ------- Run | Yrd Mat Min Mat Min Exi Min Mat Fac Peak Influence 575 | 5 152 155 575 121 . . 137 54 Initial 121 | . 3 49 . 121 . . . 14 Average 102 | . 74 83 235 121 . . 26 39 Maximum Alert Level 2 | . . . 2 . . . . . Low Security (%) 80 | 100 100 100 36 100 . 100 100 100 Level 1 16 | . . . 53 . . . . . Level 2 3 | . . . 10 . . . . . Level 3 . | . . . . . . . . . Level 4 . | . . . . . . . . . Level 5 . | . . . . . . . . . High Security . | . . . . . . . . . Max Security . | . . . . . . . . . Squads Dispatched 9 | . 3 . 2 . . . 4 . Investigation 5 | . 3 . 1 . . . 1 . Extermination . | . . . . . . . . . Reinforcement 4 | . . . 1 . . . 3 . Assault . | . . . . . . . . . Garrison . | . . . . . . . . . Intercept . | . . . . . . . . . Searches Triggered . | . . . . . . . . . Construction Impeded . | . . . . . . . . . Haulers Reinforced . | . . . . . . . . . Active Scanning Responses . | . . . . . . . . . Cargo Convoy Interrupts . | . . . . . . . . . Stealth | -11 -10 -10 -9 -9 -9 -8 -8 -7 --------- Run | Yrd Mat Min Mat Min Exi Min Mat Fac Distress Signals 7 | . . . 5 . . . 2 . Communications Jammed . | . . . . . . . . . Distress Signals . | . . . . . . . . . Times Spotted 76 | . 14 5 42 . . . 13 2 Peak Tracking Total 5 | . 3 3 5 . . . 4 1 Tactical Retreats 3 | . . . 1 . . . 2 . Traps | -11 -10 -10 -9 -9 -9 -8 -8 -7 ------- Run | Yrd Mat Min Mat Min Exi Min Mat Fac Traps Triggered 1 | . . . . . . . . 1 Indirectly . | . . . . . . . . . Trap Hack Attempts . | . . . . . . . . . Triggered . | . . . . . . . . . Disarmed . | . . . . . . . . . Reprogrammed . | . . . . . . . . . Reused . | . . . . . . . . . Traps Extracted . | . . . . . . . . . Installed . | . . . . . . . . . Triggered . | . . . . . . . . . Machines | -11 -10 -10 -9 -9 -9 -8 -8 -7 ---------- Run | Yrd Mat Min Mat Min Exi Min Mat Fac Machines Disabled 1 | . . . . . . . 1 . Max in Single Turn 1 | . . . . . . . 1 . Machines Repaired . | . . . . . . . . . Machines Dismantled . | . . . . . . . . . Machines Sabotaged . | . . . . . . . . . Overloaded Fab Kills . | . . . . . . . . . Hacking | -11 -10 -10 -9 -9 -9 -8 -8 -7 --------- Run | Yrd Mat Min Mat Min Exi Min Mat Fac Machines Accessed 31 | . 5 . 13 . 2 . 9 2 Terminals 19 | . 4 . 8 . . . 7 . Fabricators 1 | . . . . . . . . 1 Repair Stations 2 | . . . 2 . . . . . Recycling Units 5 | . 1 . 2 . . . 1 1 Scanalyzers 2 | . . . 1 . . . 1 . Garrison Access . | . . . . . . . . . Total Hacks 89 | . 14 . 35 . 11 . 25 4 Successful 45 | . 6 . 15 . 11 . 10 3 Failed 44 | . 8 . 20 . . . 15 1 Catastrophic 9 | . 2 . 4 . . . 3 . Database Lockouts . | . . . . . . . . . Manual 66 | . 13 . 28 . 1 . 22 2 Terminals 54 | . 12 . 24 . . . 18 . Fabricators 2 | . . . . . . . . 2 Repair Stations 3 | . . . 3 . . . . . Recycling Units 14 | . 2 . 5 . . . 5 2 Scanalyzers 5 | . . . 3 . . . 2 . Garrison Access . | . . . . . . . . . Terminal Hacks 21 | . 2 . 5 . 11 . 3 . Record 10 | . . . . . 10 . . . Robot Analysis 2 | . . . 2 . . . . . Prototype ID Bank 1 | . 1 . . . . . . . Terminal Index 2 | . 1 . . . . . 1 . Alert Level 1 | . . . 1 . . . . . Unreport Threat 2 | . . . 2 . . . . . Recall Reinforcements 1 | . . . . . . . 1 . Zone Layout 1 | . . . . . . . 1 . Derelict Proto ID Bank 1 | . . . . . 1 . . . Fabricator Hacks 2 | . . . . . . . . 2 Network Status 2 | . . . . . . . . 2 Repair Station Hacks 2 | . . . 2 . . . . . Scan Component 1 | . . . 1 . . . . . Repair 1 | . . . 1 . . . . . Recycling Unit Hacks . | . . . . . . . . . Scanalyzer 3 | . . . 1 . . . 2 . Insert Component 2 | . . . 1 . . . 1 . Analyze 1 | . . . . . . . 1 . Garrison Access Hacks . | . . . . . . . . . Unauthorized Hacks 17 | . 4 . 7 . . . 5 1 Terminals 9 | . 2 . 3 . . . 4 . Botnet 8 | . 2 . 3 . . . 3 . Operators 1 | . . . . . . . 1 . Fabricators . | . . . . . . . . . Repair Stations . | . . . . . . . . . Recycling Units 8 | . 2 . 4 . . . 1 1 Reject 5 | . 1 . 2 . . . 1 1 Mask 3 | . 1 . 2 . . . . . Scanalyzers . | . . . . . . . . . Garrison Access . | . . . . . . . . . Data Cores Recovered . | . . . . . . . . . Used . | . . . . . . . . . Hacking Detections 28 | . 5 . 12 . . . 9 2 Full Trace Events 6 | . 3 . 2 . . . 1 . Feedback Events . | . . . . . . . . . Feedback Blocked . | . . . . . . . . . Robot Schematics Acquired . | . . . . . . . . . Robots Built . | . . . . . . . . . Authchips . | . . . . . . . . . Time . | . . . . . . . . . Total Robot Build Rating . | . . . . . . . . . Part Schematics Acquired 1 | . . . . . . . 1 . Parts Built . | . . . . . . . . . Authchips . | . . . . . . . . . Time . | . . . . . . . . . Total Part Build Rating . | . . . . . . . . . Parts Repaired 1 | . . . 1 . . . . . Time 26 | . . . 26 . . . . . Parts Recycled . | . . . . . . . . . Recycled Matter . | . . . . . . . . . Retrieved Matter . | . . . . . . . . . Retrieved Components . | . . . . . . . . . Parts Scanalyzed 2 | . . . 1 . . . 1 . Part Schematics Acquired 1 | . . . . . . . 1 . Parts Damaged . | . . . . . . . . . Bothacking | -11 -10 -10 -9 -9 -9 -8 -8 -7 ------------ Run | Yrd Mat Min Mat Min Exi Min Mat Fac Used RIF Installer . | . . . . . . . . . Robots Hacked . | . . . . . . . . . Non-combat . | . . . . . . . . . Combat . | . . . . . . . . . Robot Hacks Applied . | . . . . . . . . . Relay Couplers Released . | . . . . . . . . . Fabnet Peak Effective % . | . . . . . . . . . Robots Rewired . | . . . . . . . . . Allies Hacked . | . . . . . . . . . Hacks Repelled . | . . . . . . . . . Allies | -11 -10 -10 -9 -9 -9 -8 -8 -7 -------- Run | Yrd Mat Min Mat Min Exi Min Mat Fac Total Allies 4 | . . 1 . . . . . 3 Largest Group 3 | . . 1 . . . . . 3 Highest-Rated Group 93 | . . 31 . . . . . 93 Highest-Rated Ally 31 | . . 31 . . . . . 31 Total Orders . | . . . . . . . . . Ally Attacks 21 | . . 9 . . . . . 12 Total Damage 291 | . . 105 . . . . . 186 Kills 2 | . . 1 . . . . . 1 Allies Corrupted . | . . . . . . . . . Allies Melted . | . . . . . . . . . Intel | -11 -10 -10 -9 -9 -9 -8 -8 -7 ------- Run | Yrd Mat Min Mat Min Exi Min Mat Fac Robot Analysis Total 2 | . . . 2 . . . . . Derelict Logs Recovered 1 | . . 1 . . . . . . Drone Launches . | . . . . . . . . . Drone Recoveries . | . . . . . . . . . Exploration | -11 -10 -10 -9 -9 -9 -8 -8 -7 ------------- Run | Yrd Mat Min Mat Min Exi Min Mat Fac Turns Passed 5484 | 82 784 401 1579 20 326 207 1704 381 Spaces Moved 3751 | 56 478 199 976 17 396 342 703 584 Core 2 | 1 . . . . 1 . . . Treads 163 | . . . 163 . . . . . Legs 1730 | 55 478 199 813 17 168 . . . Wheels . | . . . . . . . . . Hover . | . . . . . . . . . Flight 1856 | . . . . . 227 342 703 584 Fastest Speed 50 | 50 120 120 120 120 50 50 50 50 Average Speed 92 | 118 132 179 126 120 80 50 50 50 Slowest Speed 550 | 120 190 260 260 120 550 50 50 50 Overloaded Moves . | . . . . . . . . . Propulsion Burnouts . | . . . . . . . . . Robots Hopped 1 | . . . . . . . . 1 Cave-ins Triggered . | . . . . . . . . . Exploration Rate (%) 46 | 4 55 54 87 5 84 69 42 20 Regions Visited 8 Branch Regions 4 Pre-discovered Areas . | . . . . . . . . . Known Exits Taken . | . . . . . . . . . Unknown Exits Taken 8 | 1 1 1 1 1 1 1 1 . Scrap Searched 1 | . . . . . . 1 . . Spaces Dug 10 | . . . . . . . 9 1 Terrain Destroyed 80 | . . 28 42 . . . 9 1 Melee 10 | . . . . . . . 9 1 Projectile . | . . . . . . . . . AOE 70 | . . 28 42 . . . . . Terrain Rammed . | . . . . . . . . . Walls Destroyed . | . . . . . . . . . Machines Disabled . | . . . . . . . . . Actions | -11 -10 -10 -9 -9 -9 -8 -8 -7 --------- Run | Yrd Mat Min Mat Min Exi Min Mat Fac Total 5510 | 67 572 230 1180 16 402 377 2006 660 Wait 1452 | . 37 17 60 . . 33 1246 59 Move 3741 | 55 477 198 975 16 395 341 702 582 Hop 1 | . . . . . . . . 1 Pick Up 57 | 5 9 2 26 . . 1 11 3 Fast Attach 18 | 6 1 . 7 . 2 . 2 . Attach 9 | . 1 4 1 . . . 2 1 Detach . | . . . . . . . . . Swap 26 | . 9 2 11 . . 1 2 1 Drop 55 | . 10 . 25 . 5 1 11 3 Fire 80 | 1 . 3 51 . . . 19 6 Melee 68 | . 28 4 21 . . . 11 4 Ram . | . . . . . . . . . Kick 3 | . . . 3 . . . . . Crush . | . . . . . . . . . Escape Stasis . | . . . . . . . . . Rewire . | . . . . . . . . . Trap . | . . . . . . . . . Miscellaneous . | . . . . . . . . . Route ------- -11/Scrapyard -10/Materials (discovered 3 exits: *Mat / [*Min x2]) -10/Mines -9/Materials (discovered 4 exits: *Mat x2 / [*Min x2]) -9/Mines -9/Exiles -8/Mines (discovered 2 exits: *Mat x2) -8/Materials -7/Factory (discovered 2 exits: [*Fac] / [*Sto]) History --------- Turn | Location | Event 25 | -11/Scrapyard | Discovered new exit (range 15) 83 | -11/Scrapyard | Entered Materials 275 | -10/Materials | Discovered new exit (range 11) 321 | -10/Materials | Build established: Mutant 715 | -10/Materials | Discovered new exit (range 16) 820 | -10/Materials | Discovered new exit (range 16) 867 | -10/Materials | Entered Mines 940 | -10/Mines | Found a damaged Exp. Sensor Array with a note attached 943 | -10/Mines | Found Prototype Device 958 | -10/Mines | Learned Materials trap positions 1026 | -10/Mines | Received a Rocket Launcher from a helpful Derelict 1100 | -10/Mines | Received a Mining Laser from a helpful Derelict 1217 | -10/Mines | Core integrity fell below 50% 1228 | -10/Mines | System corruption reached 10% 1240 | -10/Mines | Lost 3 parts (1p1n1u) 1243 | -10/Mines | Identified Exp. Sensor Array 1260 | -10/Mines | Discovered new exit (range 5) 1268 | -10/Mines | Entered Materials 1268 | -9/Materials | Evolved 2 slots: Propulsion x2 1269 | -9/Materials | Loaded intel: 25 trap records 1323 | -9/Materials | Repaired Aluminum Leg 1830 | -9/Materials | Discovered new exit (range 12) 2189 | -9/Materials | Discovered new exit (range 15) 2312 | -9/Materials | Discovered new exit (range 15) 2476 | -9/Materials | Discovered new exit (range 14) 2847 | -9/Materials | Entered Mines 2861 | -9/Mines | Deemed a non-threat by the Exiles lab entrance 2862 | -9/Mines | Discovered new exit (range 5) 2867 | -9/Mines | Entered Exiles 2896 | -9/Exiles | Met 8R-AWN 2917 | -9/Exiles | Met EX-HEX 2957 | -9/Exiles | Met EX-BIN 2974 | -9/Exiles | Aligned with FarCom system 2975 | -9/Exiles | Given EX-Vault access code 3003 | -9/Exiles | Opened EX-Vault 3077 | -9/Exiles | Found Flying Fortress v7 3094 | -9/Exiles | Warned to stay clear of 0b10 Research branches 3108 | -9/Exiles | Met EX-DEC 3126 | -9/Exiles | Visited The Gauntlet 3189 | -9/Exiles | Discovered new exit (range 10) 3193 | -9/Exiles | Left Exiles lab with Flying Fortress v7 3193 | -9/Exiles | Entered Mines 3247 | -8/Mines | Discovered new exit (range 5) 3396 | -8/Mines | Discovered new exit (range 7) 3400 | -8/Mines | Entered Materials 3400 | -8/Materials | Evolved 2 slots: Utility x2 4733 | -8/Materials | Discovered new exit (range 15) 5104 | -8/Materials | Entered Factory 5104 | -7/Factory | Evolved 2 slots: Power x1, Utility x1 5251 | -7/Factory | Discovered new exit (range 17) 5255 | -7/Factory | Allied Derelicts emerged from ambush trap array 5453 | -7/Factory | Discovered new exit (range 5) 5485 | -7/Factory | Self-destructed Last Messages --------------- (167,127) - Loaded: Lrn. Missile Launcher 05333_ Connecting with Fabricator... >>Network(Status) Querying network status... 6 records found: (161,120) - Idle (68,81) - Loaded: R-06 Scavenger (165,179) - Idle (110,45) - Loaded: S-27 Virus (92,151) - Loaded: Adv. Reaction Control System (167,127) - Loaded: Lrn. Missile Launcher 05370_ Fabricator completes Imp. Dynamic Insulation System. 05408_ Connecting with Recycling Unit... >>Trojan(Reject) Trojan loaded successfully. Testing... Ejection routine running. 05453_ EXIT=FOUND Map ----- +----------------------------------------------------+ | | | | | | | | | | | | | | | | | | | | | | | | | | | | | | | | | | | | | | | ?????????????????###############################?? | | ?????????????????# # #?? | | ?????????????????# ! # """ """ """ #?? | | ?????????????????# # """ """ """ #?? | | ?????????????????# [! # """ """ """ #?? | | ?????????????????+ ! [! # #?? | | ?????????????????# @ # #?? | | ?????????????????########/#############+######+### | | ?????????????????????## t # | | ?????????????????????# # | | ?????????????????????#T # | | ?????????????????????## # | | ?????????????????? # | | ?????????????????##### ########### ######## | | ?????????????????????# # !! # #??????? | | ?????????????????????# # !! # #??????? | | ?????????????????????# #! ! !# #??????? | | ?????????????????????# # # #??????? | | ????????????????????? + + #??????? | | ????????????????????####### # #??????? | | ??????????????????????????# """ """ # ######## | | ??????????????????????????# """T""" # # | | ??????????????????????????########### # """" | | ??????????????#######??????# !! # # """" | | ??????????????# #??????# !! # # """" | | ??????????????# ######## ! + + """" | | ??????????????# + # < # | | ??????????????# #### ! # # | | ??????????????# #??# # # | | ??????????????# #??# ####### | | ??????????????# #??# #?????######## | +----------------------------------------------------+ Best States ------------- Heat Dissipation 34 Energy Generation 14 Energy Capacity 265 Matter Stores 300 Matter Capacity 300 Sight Range 20 Robot Scan Range 20 Terrain Scan Density 10 Armor Coverage 450 Propulsion Shielding 33 Evasion (%) 68 Recoil Reduction 2 Item Schematics ----------------- Missile Launcher | -8/Materials | Scanalyzed Robot Schematics ------------------ None Fabricated ------------ Nothing Alien Tech Used ----------------- None Achievements -------------- None Challenges ------------ None Game ------ Seed CobblerAssemblyTearclaws Manual? 0 Play Time 00:43:27 Cumulative 41.8 hours Start 2024.04.16 @ 10:36:56 End 2024.04.21 @ 12:36:55 Sessions 5 Manual Loads 0 Difficulty Rogue Special Mode None Game No. 84 Rogue 84 Adventurer 0 Explorer 0 Win Type - Total 1 Types 1/0/0/0/0/0/0/0/0 Lore% 26 Gallery% 37 Achievement% 34 Wizard Run 0 Options --------- Layout 1 ASCII 0 Keyboard 0 Movement Numpad Keybinds 0 Fullscreen 1 Font 24/Smallcaps Map View 50x35 Zoom Use 0% Tactical HUD 1 Map Filters NONE Filters NONE Steam 1 RUN: 80dae622-20f4-4122-9106-91abf35361b1